fUST/lending_fUST_20240319
["ID","MTS","AMOUNT","RATE_DAILY","PERIOD"]
[319545820,1710841839267,-500.0,0.00021899,2]
[319545822,1710841839279,-277.09771023,0.00021899,2]
[319545825,1710841839289,-128072.97953593,0.000219,2]
[319545827,1710841839300,-220.46073522,0.000219,2]
[319545829,1710841839309,-844.79260563,0.000219,2]
[319545831,1710841839320,-708.123232,0.00021918,2]
[319545833,1710841839332,-2075.99151973,0.00021975,2]
[319545840,1710841839393,-613.31839,0.00021975,2]
[319545845,1710841839408,-319.015,0.00021975,2]
[319545848,1710841839422,-4946.85949014,0.00021975,2]
[319545852,1710841839433,-500.0,0.00021995,2]
[319545856,1710841839444,-500.0,0.00021995,2]
[319545859,1710841839455,-322.32581664,0.00021996,2]
[319545862,1710841839467,-806.87585143,0.00021996,2]
[319545864,1710841839478,-1437.10618653,0.00021996,2]
[319545867,1710841839488,-156.75485299,0.00021996,2]
[319545869,1710841839498,-180.58770035,0.00021996,2]
[319545872,1710841839509,-629.42131916,0.00021996,2]
[319545876,1710841839519,-2008.94539994,0.00021997,2]
[319545878,1710841839529,-657.44321192,0.00021997,2]
[319545881,1710841839540,-282.06409348,0.00021997,2]
[319545883,1710841839550,-191.80476881,0.00021997,2]
[319545885,1710841839561,-562.07868334,0.00021997,2]
[319545887,1710841839572,-429.82985668,0.00021997,2]
[319545889,1710841839584,-155.19587984,0.00021997,2]
[319545892,1710841839594,-382.29481139,0.00021997,2]
[319545894,1710841839605,-236.48109331,0.00021997,2]
[319545896,1710841839616,-500.0,0.00021997,2]
[319545898,1710841839628,-825.15,0.00021997,2]
[319545900,1710841839638,-180.28215574,0.00021998,2]
[319545902,1710841839649,-155.16447434,0.00021998,2]
[319545904,1710841839659,-331.42181896,0.00021998,2]
[319545906,1710841839670,-381.78579349,0.00021998,2]
[319545908,1710841839680,-184.61492513,0.00021998,2]
[319545911,1710841839692,-3086.66546485,0.00021998,2]
[319545913,1710841839704,-211.836757,0.00021998,2]
[319545915,1710841839714,-793.75981317,0.00021998,2]
[319545917,1710841839725,-500.0,0.00021998,2]
[319545919,1710841839735,-500.0,0.00021998,2]
[319545921,1710841839744,-540.63,0.00021998,2]
[319545923,1710841839753,-500.0,0.00021999,2]
[319545925,1710841839763,-500.0,0.00021999,2]
[319545927,1710841839773,-500.0,0.00021999,2]
[319545929,1710841839783,-500.0,0.00021999,2]
[319545931,1710841839792,-500.0,0.00021999,2]
[319545933,1710841839804,-500.0,0.00021999,2]
[319545936,1710841839815,-500.0,0.00021999,2]
[319545938,1710841839825,-500.0,0.00021999,2]
[319545940,1710841839836,-500.0,0.00021999,2]
[319545942,1710841839846,-500.0,0.00021999,2]
[319545944,1710841839857,-500.0,0.00021999,2]
[319545946,1710841839867,-500.0,0.00021999,2]
[319545949,1710841839880,-535.88703839,0.00021999,2]
[319545951,1710841839891,-500.0,0.00021999,2]
[319545952,1710841839901,-500.0,0.00021999,2]
[319545954,1710841839911,-500.0,0.00021999,2]
[319545957,1710841839921,-500.0,0.00021999,2]
[319545959,1710841839932,-500.0,0.00021999,2]
[319545961,1710841839943,-500.0,0.00021999,2]
[319545963,1710841839952,-500.0,0.00021999,2]
[319545965,1710841839961,-500.0,0.00021999,2]
[319545967,1710841839973,-500.0,0.00021999,2]
[319545969,1710841839983,-500.0,0.00021999,2]
[319545971,1710841839994,-500.0,0.00021999,2]
[319545973,1710841840005,-500.0,0.00021999,2]
[319545976,1710841840016,-500.0,0.00021999,2]
[319545978,1710841840026,-329.33220217,0.00021999,2]
[319545980,1710841840040,-825.15,0.00021999,2]
[319545982,1710841840058,-825.15,0.00021999,2]
[319545984,1710841840069,-825.15,0.00021999,2]
[319545986,1710841840083,-825.15,0.00021999,2]
[319545989,1710841840095,-825.15,0.00021999,2]
[319545991,1710841840105,-825.15,0.00021999,2]
[319545993,1710841840116,-825.15,0.00021999,2]
[319545995,1710841840128,-825.15,0.00021999,2]
[319545997,1710841840138,-825.15,0.00021999,2]
[319545999,1710841840148,-825.15,0.00021999,2]
[319546001,1710841840159,-825.15,0.00021999,2]
[319546004,1710841840170,-825.15,0.00021999,2]
[319546006,1710841840180,-825.15,0.00021999,2]
[319546008,1710841840191,-825.15,0.00021999,2]
[319546009,1710841840202,-825.15,0.00021999,2]
[319546011,1710841840212,-825.15,0.00021999,2]
[319546013,1710841840223,-825.16045328,0.00021999,2]
[319546015,1710841840233,-2119.87813029,0.00022,3]
[319546017,1710841840244,-15399.10910316,0.00022,2]
[319546019,1710841840254,-157.45654747,0.00022,2]
[319546021,1710841840264,-1669.66670022,0.00022,2]
[319546023,1710841840274,-4746.42721598,0.00022,2]
[319546025,1710841840283,-160.25861085,0.00022,2]
[319546027,1710841840294,-251.53356192,0.00022,2]
[319546029,1710841840304,-1000.0,0.00022,20]
[319546031,1710841840314,-23533.0102177,0.00022,7]
[319546033,1710841840328,-635840.65951301,0.00022,7]
[319546035,1710841840338,-155.32197937,0.00022,2]
[319546037,1710841840350,-1681.83650848,0.0002217,2]
[319546040,1710841840361,-155.43215511,0.00022387,2]
[319546042,1710841840373,-236.54673702,0.00022389,2]
[319546044,1710841840384,-17309.77136841,0.00022389,2]
[319546046,1710841840394,-2000.0,0.000225,2]
[319546048,1710841840404,-2000.0,0.0002251,2]
[319546050,1710841840414,-2000.0,0.0002252,2]
[319546062,1710841840515,-2000.0,0.0002253,2]
[319546064,1710841840525,-2000.0,0.0002254,2]
[319546066,1710841840534,-2000.0,0.0002255,2]
[319546068,1710841840544,-2000.0,0.0002256,2]
[319546070,1710841840553,-2000.0,0.0002257,2]
[319546072,1710841840562,-2000.0,0.0002258,2]
[319546074,1710841840571,-2000.0,0.0002259,2]
[319546076,1710841840580,-2000.0,0.000226,2]
[319546078,1710841840588,-2000.0,0.0002261,2]
[319546079,1710841840597,-2000.0,0.0002262,2]
[319546081,1710841840606,-2000.0,0.0002263,2]
[319546083,1710841840615,-2000.0,0.0002264,2]
[319546085,1710841840627,-2000.0,0.0002265,2]
[319546087,1710841840636,-2000.0,0.0002266,2]
[319546089,1710841840644,-2312.387724,0.0002267,2]
[319546091,1710841840654,-200.0,0.00022737,2]
[319546093,1710841840663,-10000.0,0.000228,7]
[319546095,1710841840672,-10000.0,0.000228,10]
[319546097,1710841840681,-10000.0,0.000228,2]
[319546099,1710841840690,-2000.0,0.000229,2]
[319546101,1710841840699,-2000.0,0.0002291,2]
[319546103,1710841840710,-2000.0,0.0002292,2]
[319546105,1710841840719,-2000.0,0.0002293,2]
[319546107,1710841840728,-2000.0,0.0002294,2]
[319546109,1710841840737,-3833.290561,0.0002295,2]
[319546111,1710841840747,-7423.2657384,0.00023,2]
[319546113,1710841840756,-1774.0,0.00023,2]
[319546115,1710841840764,-12356.82821372,0.00023,16]
[319546117,1710841840774,-233.41099075,0.00023,2]
[319546119,1710841840783,-1774.0,0.00023288,2]
[319546121,1710841840792,-708.123232,0.00023452,2]
[319546123,1710841840801,-1774.0,0.00023562,2]
[319546125,1710841840810,-160.0,0.00023675,3]
[319546127,1710841840821,-1774.0,0.00023836,2]
[319546129,1710841840830,-160.0,0.00023898,4]
[319546131,1710841840839,-150.0,0.000239,2]
[319546133,1710841840848,-10991.29815062,0.00023998,2]
[319546135,1710841840857,-1421.7318714,0.00024,2]
[319546137,1710841840866,-798.68423097,0.00024,2]
[319546139,1710841840876,-155.0,0.00024,2]
[319546141,1710841840886,-1774.0,0.0002411,2]
[319546143,1710841840895,-160.0,0.0002412,5]
[319546145,1710841840903,-1774.0,0.00024164,2]
[319546146,1710841840913,-306.4028278,0.00024272,2]
[319546148,1710841840922,-306.0,0.00024272,2]
[319546150,1710841840931,-153.0,0.00024272,2]
[319546152,1710841840939,-306.0,0.00024272,2]
[319546154,1710841840949,-160.0,0.00024343,6]
[319546156,1710841840958,-1774.0,0.00024384,2]
[319546158,1710841840968,-160.0,0.00024566,7]
[319546160,1710841840977,-200.0,0.00024658,2]
[319546162,1710841840986,-380.0,0.00024658,2]
[319546164,1710841840995,-3992.47304687,0.00024694,2]
[319546169,1710841841032,-500.0,0.00021899,2]
[319546171,1710841841045,-466.2,0.00021899,2]
[319546173,1710841841054,-33.8114866,0.00024694,2]
[319546176,1710841841071,-1764.6480946,0.00024694,2]
[319546178,1710841841082,-22606.80879196,0.00024694,2]
[319546180,1710841841092,-160.0,0.00024789,8]
[319546182,1710841841101,-153.0,0.0002482,2]
[319546184,1710841841110,-155.4475117,0.0002482,2]
[319546186,1710841841119,-200.2855122,0.00024966,2]
[319546187,1710841841132,-262.87466488,0.00024966,2]
[319546189,1710841841141,-202.83388266,0.00024966,2]
[319546191,1710841841151,-200.0,0.00024966,2]
[319546193,1710841841162,-153.0,0.00024967,2]
[319546195,1710841841171,-153.0,0.00024967,2]
[319546197,1710841841180,-153.0,0.00024967,2]
[319546199,1710841841189,-153.0,0.00024967,2]
[319546201,1710841841199,-153.0,0.00024967,2]
[319546203,1710841841208,-153.0,0.00024967,2]
[319546205,1710841841217,-153.0,0.00024967,2]
[319546207,1710841841227,-153.0,0.00024967,2]
[319546209,1710841841236,-162.27951835,0.00024979,2]
[319546211,1710841841245,-197.22240364,0.00024988,2]
[319546213,1710841841254,-1008.04858244,0.00025,2]
[319546215,1710841841263,-228.6670275,0.00025,2]
[319546217,1710841841272,-720.67613366,0.00025,2]
[319546219,1710841841281,-200.0,0.00025,5]
[319546221,1710841841290,-155.10081553,0.00025,2]
[319546223,1710841841299,-589.95047448,0.00025,2]
[319546225,1710841841309,-182.70050198,0.00025,2]
[319546227,1710841841318,-389.85,0.00025,7]
[319546229,1710841841327,-465.51,0.00025,5]
[319546231,1710841841336,-8700.65356751,0.00025,60]
[319546233,1710841841346,-433.52875537,0.00025,2]
[319546235,1710841841354,-160.0,0.00025012,9]
[319546237,1710841841364,-153.0,0.00025104,2]
[319546239,1710841841375,-153.0,0.00025104,2]
[319546241,1710841841384,-153.0,0.00025104,2]
[319546242,1710841841393,-153.0,0.00025104,2]
[319546244,1710841841402,-153.0,0.00025104,2]
[319546246,1710841841411,-153.0,0.00025104,2]
[319546248,1710841841421,-153.0,0.00025104,2]
[319546250,1710841841431,-153.0,0.00025104,2]
[319546252,1710841841441,-153.0,0.00025104,2]
[319546254,1710841841452,-153.0,0.00025104,2]
[319546256,1710841841461,-270.0,0.00025104,2]
[319546258,1710841841473,-201.2320405,0.00025104,2]
[319546260,1710841841482,-201.2320405,0.00025104,2]
[319546262,1710841841491,-153.0,0.00025104,2]
[319546264,1710841841501,-201.2320405,0.00025104,2]
[319546266,1710841841510,-153.0,0.00025104,2]
[319546268,1710841841519,-201.2320405,0.00025104,2]
[319546270,1710841841528,-201.2320405,0.00025104,2]
[319546272,1710841841537,-201.637423,0.00025104,2]
[319546274,1710841841547,-153.0,0.00025104,2]
[319546276,1710841841556,-1774.0,0.00025131,2]
[319546278,1710841841566,-160.0,0.00025235,10]
[319546279,1710841841575,-1792.0,0.00025373,2]
[319546281,1710841841585,-401.9940152,0.00025378,2]
[319546284,1710841841595,-160.0,0.00025458,11]
[319546285,1710841841605,-160.0,0.00025681,12]
[319546287,1710841841615,-160.0,0.00025904,13]
[319546289,1710841841625,-734.9055384,0.00026,2]
[319546290,1710841841634,-1774.0,0.00026098,2]
[319546291,1710841841642,-1774.0,0.00026098,2]
[319546292,1710841841651,-160.0,0.00026127,14]
[319546293,1710841841660,-160.0,0.0002635,15]
[319546294,1710841841670,-188.05863014,0.0002635,5]
[319546295,1710841841678,-245.570676,0.00026575,2]
[319546296,1710841841688,-245.570676,0.00026575,8]
[319546297,1710841841697,-245.570676,0.00026575,14]
[319546298,1710841841706,-245.570676,0.00026575,20]
[319546299,1710841841715,-245.570676,0.00026575,26]
[319546300,1710841841723,-245.570676,0.00026575,33]
[319546301,1710841841732,-245.570676,0.00026575,39]
[319546302,1710841841741,-245.570676,0.00026575,45]
[319546303,1710841841750,-245.570676,0.00026575,51]
[319546304,1710841841759,-245.570676,0.00026575,57]
[319546305,1710841841769,-245.570676,0.00026575,64]
[319546306,1710841841778,-245.570676,0.00026575,70]
[319546307,1710841841787,-245.570676,0.00026575,76]
[319546308,1710841841796,-245.570676,0.00026575,82]
[319546309,1710841841805,-245.570676,0.00026575,88]
[319546310,1710841841815,-245.570676,0.00026575,95]
[319546311,1710841841824,-245.570676,0.00026575,101]
[319546312,1710841841833,-245.570676,0.00026575,107]
[319546313,1710841841842,-245.570676,0.00026575,113]
[319546314,1710841841852,-245.570676,0.00026575,120]
[319546315,1710841841861,-1774.0,0.00026822,2]
[319546316,1710841841870,-200.00870153,0.00027,30]
[319546317,1710841841882,-15277.64824394,0.00027,2]
[319546318,1710841841891,-194.36525392,0.00027,2]
[319546319,1710841841900,-11317.455449,0.00027,120]
[319546321,1710841841910,-1774.0,0.00027064,2]
[319546322,1710841841919,-500.0,0.00027397,14]
[319546324,1710841841929,-500.0,0.00027397,14]
[319546326,1710841841938,-500.0,0.00027397,14]
[319546328,1710841841947,-500.0,0.00027397,14]
[319546330,1710841841956,-500.0,0.00027397,14]
[319546332,1710841841966,-500.0,0.00027397,14]
[319546334,1710841841976,-485.48259758,0.00027397,14]
[319546336,1710841841985,-250.0,0.00027399,42]
[319546339,1710841841995,-42972.3049067,0.000275,2]
[319546341,1710841842005,-1774.0,0.00027547,2]
[319546342,1710841842014,-167.27819093,0.00027919,30]
[319546344,1710841842024,-13528.382263,0.00028,2]
[319546346,1710841842033,-504.89903534,0.00028,2]
[319546349,1710841842044,-200.0,0.00028,120]
[319546351,1710841842054,-1774.0,0.00028031,2]
[319546352,1710841842063,-1774.0,0.00028272,2]
[319546355,1710841842075,-186067.09875499,0.0002877,2]
[319546356,1710841842085,-1002.94956833,0.0002877,2]
[319546358,1710841842094,-1774.0,0.00028997,2]
[319546360,1710841842102,-1774.0,0.00028997,2]
[319546362,1710841842111,-200.05404867,0.00029,2]
[319546364,1710841842119,-837.09732112,0.00029,2]
[319546366,1710841842132,-82806.71968371,0.00029,30]
[319546368,1710841842141,-1774.0,0.00029722,2]
[319546370,1710841842150,-733.41747104,0.000299,120]
[319546372,1710841842161,-151.58,0.0002999,35]
[319546374,1710841842170,-167.58019584,0.0003,2]
[319546376,1710841842179,-376.60370143,0.0003,10]
[319546378,1710841842188,-155.0294556,0.0003,4]
[319546380,1710841842198,-919.71848916,0.0003,4]
[319546382,1710841842207,-43526.26168518,0.0003,10]
[319546434,1710841843015,-3353.5,0.0003,10]
[319546435,1710841843027,-4939.43414611,0.0003,10]
[319546436,1710841843110,-1805.0,0.0003,10]
[319546634,1710841846091,-307.2797099,0.00026033,2]
[319546636,1710841846101,-306.9615974,0.00026033,2]
[319546638,1710841846111,-153.0,0.00026033,2]
[319546640,1710841846120,-257.8792595,0.00026033,2]
[319546641,1710841846133,-153.0,0.00026033,2]
[319546643,1710841846143,-153.0,0.00026033,2]
[319546645,1710841846154,-3864.67610603,0.000297,2]
[319546647,1710841846163,-15350.94482161,0.0003,10]
[319546649,1710841846173,-29043.92654259,0.0003,14]
[319546854,1710842479108,10000.0,0.00025,120]
[319546856,1710842486825,10000.0,0.00025,120]
[319546864,1710842732246,-154.95351395,0.00017943,2]
[319546865,1710842732265,-1299.83668109,0.00017943,2]
[319546866,1710842732283,-985.2366086,0.00017944,2]
[319546867,1710842732307,-2223.14204252,0.00018,4]
[319546868,1710842778887,-1986.0,0.00018,4]
[319546871,1710842840093,-292.55211815,0.00018,4]
[319546880,1710842911259,-520312.29202874,0.00021838,60]
[319546881,1710842911286,-310525.88757009,0.00021838,60]
[319546882,1710842959116,-202.1945166,0.00017924,2]
[319546883,1710842959139,-417.33014615,0.00018,4]
[319546884,1710842959160,-292.736908,0.00018099,2]
[319546885,1710842959181,-197.18898522,0.000187,2]
[319546888,1710842985762,-512.8426471,0.00029997,30]
[319546889,1710842985790,-78754.77432562,0.00029999,30]
[319546890,1710842985815,-854.47640999,0.0003,33]
[319546891,1710842985839,-1999.999999,0.0003,30]
[319546892,1710842985862,-200.0,0.0003,120]
[319546893,1710842985887,-361.389999,0.0003,120]
[319546894,1710842985910,-594.999999,0.0003,120]
[319546895,1710842985932,-3702.40361762,0.0003,120]
[319546896,1710842985957,-36016.83140774,0.00034898,120]
[319546897,1710842985979,-175.00345392,0.00035,30]
[319546898,1710842986005,-155.0,0.00035,50]
[319546899,1710842986029,-158.92041124,0.00035,120]
[319546900,1710842986054,-6250.0,0.00035616,120]
[319546901,1710842986079,-150.26173486,0.00036172,120]
[319546902,1710842986103,-1440.0,0.00037,120]
[319546903,1710842986127,-1091.35763919,0.0003707,31]
[319546904,1710842986149,-1698.15183,0.00038,30]
[319546905,1710842986172,-10000.0,0.000397,120]
[319546906,1710842986196,-96272.32942071,0.00039768,120]
[319546907,1710842986218,-1490.03368504,0.000398,60]
[319546908,1710842986242,-5635.42917243,0.0004,120]
[319546909,1710842986264,-158634.61522901,0.0004,30]
[319546910,1710842986288,-3268.79647494,0.0004,120]
[319546911,1710842986313,-2385.22211687,0.0004,120]
[319546912,1710842986339,-159.28557221,0.0004,120]
[319546913,1710842986364,-2962.490378,0.0004,56]
[319546914,1710842986389,-200.0,0.00041,120]
[319546944,1710843032175,-24.44975939,0.000187,2]
[319546945,1710843032185,-881.6694703,0.00018998,2]
[319546946,1710843032195,-156.52883139,0.00018999,2]
[319546947,1710843032204,-202.61485466,0.00019,2]
[319546953,1710843032626,-62586.69518571,0.00019,2]
[319546954,1710843032636,-207.49370121,0.000194,2]
[319546955,1710843032646,-213.46505018,0.000195,2]
[319546956,1710843032655,-213.46505018,0.000195,2]
[319546957,1710843032665,-400.63282899,0.0002,2]
[319546958,1710843032675,-164.384459,0.00020764,2]
[319546959,1710843032684,-171.848981,0.00020764,2]
[319546960,1710843032693,-164.384459,0.00020764,2]
[319546961,1710843032703,-171.848981,0.00020764,2]
[319546962,1710843032713,-155.4156777,0.0002082,2]
[319546964,1710843032722,-524.89134722,0.0002082,2]
[319546965,1710843032731,-236.58225726,0.00020821,2]
[319546967,1710843032743,-240.42580299,0.00020821,2]
[319546969,1710843032752,-550.37,0.00020821,2]
[319546971,1710843032763,-550.37,0.00020821,2]
[319546973,1710843032772,-500.0,0.00020821,2]
[319546974,1710843032781,-500.0,0.00020821,2]
[319546976,1710843032790,-852.55,0.00020821,2]
[319546978,1710843032800,-852.55,0.00020821,2]
[319546980,1710843032810,-1046.11,0.00020821,2]
[319546982,1710843032819,-1046.11,0.00020821,2]
[319546983,1710843032829,-500.0,0.00020821,2]
[319546984,1710843032839,-501.70710483,0.00020821,2]
[319546986,1710843032848,-269.21616022,0.00020821,2]
[319546988,1710843032857,-500.0,0.00020821,2]
[319546990,1710843032867,-500.0,0.00020821,2]
[319546992,1710843032876,-233.77239255,0.00020821,2]
[319546993,1710843032885,-559.44,0.00020821,2]
[319546995,1710843032895,-559.44,0.00020821,2]
[319546998,1710843032913,-500.0,0.00020821,2]
[319547001,1710843032927,-500.0,0.00020821,2]
[319547003,1710843032937,-500.0,0.00020892,2]
[319547005,1710843032946,-543.79239526,0.00020899,2]
[319547007,1710843032956,-500.0,0.00020899,2]
[319547009,1710843032967,-500.67143048,0.00020899,2]
[319547011,1710843032977,-500.0,0.00020899,2]
[319547013,1710843032987,-155.31388088,0.00020899,2]
[319547015,1710843032997,-500.0,0.00020899,2]
[319547017,1710843033007,-507.24626746,0.00020899,2]
[319547018,1710843033023,-6699.28018257,0.000209,2]
[319547020,1710843033033,-3452.96245072,0.00021,2]
[319547022,1710843033044,-2000.0,0.00021176,2]
[319547024,1710843033055,-500.0,0.00021283,2]
[319547026,1710843033065,-852.55,0.00021283,2]
[319547028,1710843033075,-550.37,0.00021309,2]
[319547030,1710843033085,-1046.11,0.00021309,2]
[319547032,1710843033095,-1366.92693372,0.0002131,2]
[319547035,1710843033108,-2654.298175,0.00021319,2]
[319547036,1710843033119,-154.95351395,0.0002141,2]
[319547039,1710843033129,-1366.92693369,0.00021417,2]
[319547041,1710843033139,-1366.92693369,0.00021524,2]
[319547042,1710843033148,-1366.92693369,0.00021631,2]
[319547044,1710843033158,-1366.92693369,0.00021738,2]
[319547046,1710843033168,-1000.0,0.00021738,2]
[319547048,1710843033178,-164.384459,0.00021802,2]
[319547050,1710843033187,-164.384459,0.00021802,2]
[319547052,1710843033196,-500.0,0.00021826,2]
[319547054,1710843033205,-559.44,0.00021826,2]
[319547056,1710843033214,-500.0,0.00021826,2]
[319547058,1710843033223,-500.0,0.00021827,2]
[319547060,1710843033233,-502.26594523,0.00021827,2]
[319547061,1710843033242,-559.44,0.00021838,2]
[319547062,1710843033252,-559.44,0.00021838,2]
[319547063,1710843033265,-559.44,0.00021838,2]
[319547064,1710843033275,-559.44,0.00021838,2]
[319547065,1710843033284,-559.44,0.00021838,2]
[319547066,1710843033294,-559.44,0.00021838,2]
[319547067,1710843033304,-559.44,0.00021838,2]
[319547069,1710843033313,-559.44,0.00021838,2]
[319547070,1710843033323,-559.44,0.00021838,2]
[319547072,1710843033333,-559.44,0.00021838,2]
[319547074,1710843033342,-559.44,0.00021838,2]
[319547076,1710843033352,-559.44,0.00021838,2]
[319547078,1710843033361,-559.44,0.00021838,2]
[319547080,1710843033370,-559.44,0.00021838,2]
[319547082,1710843033380,-559.44,0.00021838,2]
[319547083,1710843033390,-559.44,0.00021838,2]
[319547085,1710843033403,-559.44,0.00021838,2]
[319547087,1710843033413,-559.44,0.00021838,2]
[319547088,1710843033422,-559.44,0.00021838,2]
[319547089,1710843033432,-559.44,0.00021838,2]
[319547090,1710843033442,-559.57332535,0.00021838,2]
[319547091,1710843033452,-500.0,0.00021838,2]
[319547092,1710843033461,-500.0,0.00021838,2]
[319547093,1710843033471,-220.77,0.00021838,2]
[319547094,1710843033481,-154.90705577,0.00021838,2]
[319547095,1710843033491,-550.37,0.00021899,2]
[319547096,1710843033500,-550.37,0.00021899,2]
[319547097,1710843033512,-550.37,0.00021899,2]
[319547098,1710843033521,-500.0,0.00021899,2]
[319547099,1710843033531,-500.0,0.00021899,2]
[319547100,1710843033541,-624.85,0.00021899,2]
[319547101,1710843033550,-852.55,0.00021899,2]
[319547102,1710843033560,-852.55,0.00021899,2]
[319547103,1710843033569,-852.55,0.00021899,2]
[319547104,1710843033579,-1046.11,0.00021899,2]
[319547105,1710843033589,-1046.11,0.00021899,2]
[319547106,1710843033599,-1046.11,0.00021899,2]
[319547107,1710843033608,-550.37,0.00021974,2]
[319547108,1710843033618,-852.55,0.00021974,2]
[319547109,1710843033627,-1046.11,0.00021974,2]
[319547110,1710843033637,-550.37,0.00021998,2]
[319547111,1710843033646,-852.55,0.00021998,2]
[319547112,1710843033656,-1046.11,0.00021998,2]
[319547113,1710843033666,-500.0,0.00021999,2]
[319547114,1710843033676,-242.84670664,0.00021999,2]
[319547115,1710843033686,-550.37,0.00021999,2]
[319547116,1710843033695,-550.37,0.00021999,2]
[319547117,1710843033705,-550.37,0.00021999,2]
[319547118,1710843033715,-550.37,0.00021999,2]
[319547119,1710843033724,-550.37,0.00021999,2]
[319547120,1710843033733,-550.37,0.00021999,2]
[319547121,1710843033743,-550.37,0.00021999,2]
[319547122,1710843033752,-550.37,0.00021999,2]
[319547123,1710843033765,-550.37,0.00021999,2]
[319547124,1710843033780,-550.37,0.00021999,2]
[319547125,1710843033794,-550.37,0.00021999,2]
[319547126,1710843033806,-550.37,0.00021999,2]
[319547127,1710843033818,-550.37,0.00021999,2]
[319547128,1710843033831,-550.37,0.00021999,2]
[319547129,1710843033843,-550.37,0.00021999,2]
[319547130,1710843033855,-550.5026201,0.00021999,2]
[319547131,1710843033866,-852.55,0.00021999,2]
[319547132,1710843033877,-852.55,0.00021999,2]
[319547133,1710843033887,-852.55,0.00021999,2]
[319547134,1710843033898,-852.55,0.00021999,2]
[319547135,1710843033909,-852.55,0.00021999,2]
[319547136,1710843033920,-852.55,0.00021999,2]
[319547137,1710843033931,-852.55,0.00021999,2]
[319547138,1710843033942,-852.55,0.00021999,2]
[319547139,1710843033954,-852.55,0.00021999,2]
[319547140,1710843033966,-852.55,0.00021999,2]
[319547141,1710843033976,-852.55,0.00021999,2]
[319547142,1710843033986,-852.55,0.00021999,2]
[319547143,1710843033997,-852.55,0.00021999,2]
[319547144,1710843034008,-852.55,0.00021999,2]
[319547145,1710843034022,-852.55,0.00021999,2]
[319547146,1710843034032,-852.55,0.00021999,2]
[319547147,1710843034043,-1046.11,0.00021999,2]
[319547148,1710843034054,-1046.11,0.00021999,2]
[319547149,1710843034066,-1046.11,0.00021999,2]
[319547150,1710843034076,-1046.11,0.00021999,2]
[319547151,1710843034087,-1046.11,0.00021999,2]
[319547152,1710843034098,-1046.11,0.00021999,2]
[319547153,1710843034108,-1046.11,0.00021999,2]
[319547154,1710843034118,-1046.11,0.00021999,2]
[319547155,1710843034129,-1046.11,0.00021999,2]
[319547156,1710843034138,-1046.11,0.00021999,2]
[319547157,1710843034148,-1046.11,0.00021999,2]
[319547158,1710843034158,-1046.11,0.00021999,2]
[319547159,1710843034168,-1046.11,0.00021999,2]
[319547160,1710843034178,-1046.11,0.00021999,2]
[319547161,1710843034189,-1046.11,0.00021999,2]
[319547162,1710843034199,-471.93429443,0.00021999,2]
[319547226,1710843038243,-574.33570557,0.00021999,2]
[319547227,1710843038253,-432.76893433,0.00022,2]
[319547228,1710843038270,-296.927027,0.00022,2]
[319547263,1710843040228,-591.867,0.00022,2]
[319547265,1710843040241,-15079.06733128,0.00022,2]
[319547267,1710843040253,-544.07827816,0.00022,2]
[319547270,1710843040269,-5589.20340084,0.00022,2]
[319547272,1710843040280,-3027.60830071,0.0002217,2]
[319547274,1710843040290,-150.0,0.00022999,2]
[319547276,1710843040302,-150.0,0.00023999,2]